fUSD/lending_fUSD_20251115
["ID","MTS","AMOUNT","RATE_DAILY","PERIOD"]
[394075677,1763243573053,151.0,0.00041455,120]
[394075678,1763243573126,500.0,0.00041455,120]
[394075679,1763243573221,500.0,0.00041455,120]
[394075680,1763243573321,151.0,0.00041455,120]
[394075681,1763243573377,500.0,0.00041455,120]
[394075682,1763243573447,500.0,0.00041455,120]
[394075683,1763243573528,500.0,0.00041455,120]
[394075684,1763243573591,151.0,0.00041455,120]
[394075685,1763243573661,500.0,0.00041455,120]
[394075686,1763243573739,500.0,0.00041455,120]
[394075687,1763243573803,151.0,0.00041455,120]
[394075688,1763243573956,500.0,0.00041455,120]
[394075689,1763243574052,151.0,0.00041455,120]
[394075690,1763243574114,500.0,0.00041455,120]
[394075691,1763243574177,263.31828869,0.00041455,120]
[394075692,1763243574262,151.0,0.00041455,120]
[394075693,1763243574326,151.0,0.00041455,120]
[394075694,1763243574388,151.0,0.00041455,120]
[394075695,1763243574498,151.0,0.00041455,120]
[394075696,1763243574578,151.0,0.00041455,120]
[394075697,1763243574649,151.0,0.00041455,120]
[394075698,1763243574739,151.0,0.00041455,120]
[394075699,1763243574855,151.0,0.00041455,120]
[394075700,1763243575507,164.29893212,0.00041455,120]
[394075701,1763243575577,500.0,0.00041455,120]
[394075702,1763243575787,615.30441666,0.00041455,120]
[394075703,1763243575988,323.89654673,0.00041455,30]
[394075704,1763243576780,500.0,0.00041455,120]
[394075705,1763243576834,500.0,0.00041455,120]
[394075706,1763243576885,500.0,0.00041455,120]
[394075707,1763243577240,500.0,0.00041455,120]
[394075708,1763243577294,500.0,0.00041455,120]
[394075709,1763243577592,500.0,0.00041455,120]
[394075710,1763243577772,250.0,0.00041455,120]
[394075711,1763243577833,500.0,0.00041455,120]
[394075712,1763243577885,250.0,0.00041455,120]
[394075713,1763243577944,250.0,0.00041455,120]
[394075714,1763243577995,500.0,0.00041455,120]
[394075715,1763243578064,500.0,0.00041455,120]
[394075716,1763243578114,250.0,0.00041455,120]
[394075717,1763243578172,250.0,0.00041455,120]
[394075718,1763243578221,200.0,0.00041455,30]
[394075719,1763243578271,250.0,0.00041455,120]
[394075720,1763243578320,250.0,0.00041455,120]
[394075721,1763243578369,207.4,0.00041455,30]
[394075722,1763243578418,250.0,0.00041455,120]
[394075723,1763243578472,250.0,0.00041455,120]
[394075724,1763243578527,215.0738,0.00041455,30]
[394075725,1763243578584,250.0,0.00041455,120]
[394075726,1763243578640,250.0,0.00041455,120]
[394075727,1763243578695,250.0,0.00041455,120]
[394075728,1763243578745,223.0315306,0.00041455,30]
[394075729,1763243578797,250.0,0.00041455,120]
[394075730,1763243578853,250.0,0.00041455,120]
[394075731,1763243578905,250.0,0.00041455,120]
[394075732,1763243578957,231.28369723,0.00041455,30]
[394075733,1763243579006,250.0,0.00041455,120]
[394075734,1763243579069,250.0,0.00041455,120]
[394075735,1763243579123,250.0,0.00041455,120]
[394075736,1763243579174,239.84119403,0.00041455,30]
[394075737,1763243579224,250.0,0.00041455,120]
[394075738,1763243579280,250.0,0.00041455,120]
[394075739,1763243579333,250.0,0.00041455,120]
[394075740,1763243579386,248.71531821,0.00041455,30]
[394075741,1763243579433,250.0,0.00041455,120]
[394075742,1763243579480,250.0,0.00041455,120]
[394075743,1763243579525,250.0,0.00041455,120]
[394075744,1763243579571,257.91778498,0.00041455,30]
[394075745,1763243579618,250.0,0.00041455,120]
[394075746,1763243579670,250.0,0.00041455,120]
[394075747,1763243579721,250.0,0.00041455,120]
[394075748,1763243579774,267.46074303,0.00041455,30]
[394075749,1763243579859,250.0,0.00041455,120]
[394075750,1763243579913,250.0,0.00041455,120]
[394075751,1763243579963,277.35679052,0.00041455,30]
[394075752,1763243580027,250.0,0.00041455,120]
[394075753,1763243580077,250.0,0.00041455,120]
[394075754,1763243580128,287.61899177,0.00041455,30]
[394075755,1763243580179,250.0,0.00041455,120]
[394075756,1763243580229,250.0,0.00041455,120]
[394075757,1763243580290,298.26089446,0.00041455,30]
[394075758,1763243580343,250.0,0.00041455,120]
[394075759,1763243580411,250.0,0.00041455,120]
[394075760,1763243580466,250.0,0.00041455,120]
[394075761,1763243580518,309.29654756,0.00041455,30]
[394075762,1763243580566,250.0,0.00041455,120]
[394075763,1763243580612,250.0,0.00041455,120]
[394075764,1763243580664,320.74051982,0.00041455,30]
[394075765,1763243580719,250.0,0.00041455,120]
[394075766,1763243580780,250.0,0.00041455,120]
[394075767,1763243580830,332.60791905,0.00041455,30]
[394075768,1763243580883,250.0,0.00041455,120]
[394075769,1763243580933,151.0,0.00041455,120]
[394075770,1763243580982,250.0,0.00041455,120]
[394075771,1763243581032,344.91441206,0.00041455,30]
[394075772,1763243581081,250.0,0.00041455,120]
[394075773,1763243581134,151.0,0.00041455,120]
[394075774,1763243581198,250.0,0.00041455,120]
[394075775,1763243581255,357.6762453,0.00041455,30]
[394075776,1763243581305,250.0,0.00041455,120]
[394075777,1763243581372,151.0,0.00041455,120]
[394075778,1763243581436,370.91026638,0.00041455,30]
[394075779,1763243581492,250.0,0.00041455,120]
[394075780,1763243581547,151.0,0.00041455,120]
[394075781,1763243581603,384.63394623,0.00041455,30]
[394075782,1763243581655,250.0,0.00041455,120]
[394075783,1763243581722,151.0,0.00041455,120]
[394075784,1763243581787,384.63394623,0.00041455,30]
[394075785,1763243581861,151.0,0.00041455,120]
[394075786,1763243581928,250.0,0.00041455,120]
[394075787,1763243581990,151.0,0.00041455,120]
[394075788,1763243582055,500.0,0.00041455,120]
[394075789,1763243582118,250.0,0.00041455,120]
[394075790,1763243582195,500.0,0.00041455,120]
[394075791,1763243582256,151.0,0.00041455,120]
[394075792,1763243582314,151.0,0.00041455,120]
[394075793,1763243582378,151.0,0.00041455,120]
[394075794,1763243582431,151.0,0.00041455,120]
[394075795,1763243582486,575.19852603,0.00041455,30]
[394075796,1763243582542,151.0,0.00041455,120]
[394075797,1763243582604,151.0,0.00041455,120]
[394075798,1763243582662,151.0,0.00041455,120]
[394075799,1763243582737,151.0,0.00041455,120]
[394075800,1763243582792,151.0,0.00041455,120]
[394075801,1763243582855,151.0,0.00041455,120]
[394075802,1763243582926,151.0,0.00041455,120]
[394075803,1763243582981,151.0,0.00041455,120]
[394075804,1763243583037,151.0,0.00041455,120]
[394075805,1763243586671,500.0,0.00041455,120]
[394075806,1763243587000,500.0,0.00041455,120]
[394075807,1763243587276,500.0,0.00041455,120]
[394075808,1763243587681,500.0,0.00041455,120]
[394075809,1763243587784,489.54,0.00041455,120]
[394075810,1763243601501,500.0,0.00041455,120]
[394075811,1763243601806,500.0,0.00041455,120]
[394075812,1763243602857,500.0,0.00041455,120]
[394075813,1763243603332,500.0,0.00041455,120]
[394075814,1763243603610,500.0,0.00041455,120]
[394075815,1763243604672,500.0,0.00041455,120]
[394075816,1763243604925,500.0,0.00041455,120]
[394075817,1763243605342,500.0,0.00041455,120]
[394075818,1763243605743,217.58,0.00041455,120]
[394075819,1763243618561,500.0,0.00041455,120]
[394075820,1763243618806,166.66,0.00041455,120]
[394075821,1763243620749,500.0,0.00041455,120]
[394075822,1763243621582,600.0,0.00041455,30]
[394075823,1763243623024,500.0,0.00041455,120]
[394075824,1763243623247,209.92,0.00041455,120]
[394075825,1763243625269,500.0,0.00041455,120]
[394075826,1763243628043,500.0,0.00041455,120]
[394075827,1763243628286,500.0,0.00041455,120]
[394075828,1763243628680,249.58,0.00041455,120]
[394075829,1763243629129,500.0,0.00041455,120]
[394075830,1763243629716,500.0,0.00041455,120]
[394075831,1763243629961,195.94,0.00041455,120]
[394075832,1763243631124,500.0,0.00041455,120]
[394075833,1763243633115,500.0,0.00041455,120]
[394075834,1763243635144,500.0,0.00041455,120]
[394075835,1763243637018,500.0,0.00041455,120]
[394075836,1763243641688,608.91077685,0.00041455,120]
[394075837,1763243646095,151.0,0.00041455,120]
[394075838,1763243646527,153.45425248,0.00041455,120]
[394075839,1763243646700,151.0,0.00041455,120]
[394075840,1763243647311,151.0,0.00041455,120]
[394075841,1763243647520,500.0,0.00041455,120]
[394075842,1763243647796,355.73,0.00041455,120]
[394075843,1763243647910,151.0,0.00041455,120]
[394075844,1763243648315,500.0,0.00041455,120]
[394075845,1763243648550,151.0,0.00041455,120]
[394075846,1763243649274,151.0,0.00041455,120]
[394075847,1763243649685,500.0,0.00041455,120]
[394075848,1763243649890,151.0,0.00041455,120]
[394075849,1763243650516,151.0,0.00041455,120]
[394075850,1763243651164,151.0,0.00041455,120]
[394075851,1763243651337,200.0,0.00041455,30]
[394075852,1763243651893,151.0,0.00041455,120]
[394075853,1763243651946,500.0,0.00041455,120]
[394075854,1763243652005,207.4,0.00041455,30]
[394075855,1763243652121,500.0,0.00041455,120]
[394075856,1763243652379,500.0,0.00041455,120]
[394075857,1763243652437,151.0,0.00041455,120]
[394075858,1763243652599,215.0738,0.00041455,30]
[394075859,1763243652651,500.0,0.00041455,120]
[394075860,1763243652848,500.0,0.00041455,120]
[394075861,1763243653042,169.81316499,0.00041455,120]
[394075862,1763243653091,151.0,0.00041455,120]
[394075863,1763243653143,500.0,0.00041455,120]
[394075864,1763243653207,223.0315306,0.00041455,30]
[394075865,1763243653345,500.0,0.00041455,120]
[394075866,1763243653660,500.0,0.00041455,120]
[394075867,1763243653712,151.0,0.00041455,120]
[394075868,1763243653817,231.28369723,0.00041455,30]
[394075869,1763243653910,500.0,0.00041455,120]
[394075871,1763243932490,658.51,0.00011247,2]
[394075872,1763243932684,658.51,0.00011839,2]
[394075873,1763243932897,658.51,0.00012431,2]
[394075874,1763243933092,658.51,0.00013023,2]
[394075875,1763243933294,658.51,0.00013615,2]
[394075876,1763243933500,658.51,0.00014207,2]
[394075877,1763243933717,658.51,0.00014799,2]
[394075878,1763243933916,658.51,0.00015391,2]
[394075879,1763244057609,151.0,0.00015391,2]
[394075880,1763244057652,151.0,0.00015391,2]
[394075886,1763244357877,151.0,0.00015391,2]
[394075887,1763244358313,158.50643862,0.00015391,2]
[394075888,1763244364244,324.96,0.00024854,120]
[394075889,1763244364591,324.96,0.00027339,120]
[394075890,1763244364909,324.96,0.00029824,120]
[394075948,1763244631600,-625.92812456,0.00015983,2]
[394075949,1763244631615,-32.58187544,0.00015983,2]
[394075950,1763244631624,-250.0,0.00016086,2]
[394075951,1763244631633,-195.0,0.00016086,2]
[394075952,1763244631643,-218.87434665,0.00016189,2]
[394075953,1763244631654,-250.0,0.00016287,2]
[394075954,1763244631664,-1250.0,0.00016387,2]
[394075955,1763244631674,-300.0,0.00016395,2]
[394075956,1763244631682,-300.0,0.00016395,2]
[394075957,1763244631692,-1200.0,0.00016395,2]
[394075958,1763244631700,-550.0,0.00016396,2]
[394075959,1763244631709,-1000.0,0.00016397,2]
[394075960,1763244631719,-6083.055,0.00016397,2]
[394075961,1763244631728,-3513.2459,0.00016397,2]
[394075962,1763244631737,-234.7044,0.00016397,2]
[394075963,1763244631747,-1250.0,0.00016397,2]
[394075964,1763244631756,-2500.0,0.00016397,2]
[394075965,1763244631765,-500.0,0.00016473,2]
[394075966,1763244631775,-500.0,0.00016473,2]
[394075967,1763244631784,-500.0,0.00016473,2]
[394075968,1763244631793,-500.0,0.00016473,2]
[394075969,1763244631802,-500.0,0.00016473,2]
[394075970,1763244631811,-3576.392481,0.00016475,2]
[394075971,1763244631820,-12852.43059005,0.00016475,2]
[394075972,1763244631829,-297.16919073,0.00016475,2]
[394075973,1763244631838,-173.36130238,0.00016475,2]
[394075974,1763244631847,-435.43,0.00016487,2]
[394075975,1763244631856,-151.0,0.00016487,2]
[394075976,1763244631865,-151.0,0.00016487,2]
[394075977,1763244631874,-151.0,0.00016487,2]
[394075978,1763244631883,-151.0,0.00016487,2]
[394075979,1763244631891,-158.25999202,0.00016487,2]
[394075980,1763244631900,-151.0,0.00016487,2]
[394075981,1763244631909,-151.0,0.00016487,2]
[394075982,1763244631918,-151.0,0.00016487,2]
[394075983,1763244631928,-151.0,0.00016487,2]
[394075984,1763244631938,-151.0,0.00016487,2]
[394075985,1763244631947,-151.0,0.00016487,2]
[394075986,1763244631956,-151.0,0.00016487,2]
[394075987,1763244631966,-151.0,0.00016487,2]
[394075988,1763244631975,-151.0,0.00016487,2]
[394075989,1763244631984,-151.0,0.00016487,2]
[394075990,1763244631994,-151.0,0.00016487,2]
[394075992,1763244632002,-151.0,0.00016487,2]
[394075994,1763244632012,-151.0,0.00016487,2]
[394075996,1763244632021,-151.0,0.00016487,2]
[394075998,1763244632030,-151.0,0.00016487,2]
[394076000,1763244632040,-151.0,0.00016487,2]
[394076002,1763244632049,-151.0,0.00016487,2]
[394076004,1763244632059,-151.0,0.00016487,2]
[394076006,1763244632067,-151.0,0.00016487,2]
[394076009,1763244632076,-151.0,0.00016487,2]
[394076012,1763244632086,-271.34454938,0.00016496,2]
[394076014,1763244632094,-468.47594085,0.00016496,2]
[394076016,1763244632104,-612.84786107,0.00016496,2]
[394076018,1763244632113,-601.84203092,0.00016496,2]
[394076020,1763244632122,-601.84203092,0.00016496,2]
[394076022,1763244632131,-601.84203092,0.00016496,2]
[394076024,1763244632140,-601.84203092,0.00016496,2]
[394076026,1763244632149,-601.84203092,0.00016496,2]
[394076028,1763244632158,-601.84203092,0.00016496,2]
[394076030,1763244632168,-601.84203092,0.00016496,2]
[394076033,1763244632177,-601.84203092,0.00016496,2]
[394076034,1763244632186,-601.84203092,0.00016496,2]
[394076036,1763244632195,-601.84203092,0.00016496,2]
[394076038,1763244632204,-601.84203092,0.00016496,2]
[394076040,1763244632213,-601.84203092,0.00016496,2]
[394076042,1763244632222,-601.84203092,0.00016496,2]
[394076044,1763244632231,-601.84203092,0.00016496,2]
[394076047,1763244632241,-601.84203092,0.00016496,2]
[394076048,1763244632251,-601.84203092,0.00016496,2]
[394076049,1763244632261,-601.84203092,0.00016496,2]
[394076051,1763244632270,-601.84203092,0.00016496,2]
[394076053,1763244632279,-601.84203092,0.00016496,2]
[394076055,1763244632288,-601.84203092,0.00016496,2]
[394076057,1763244632298,-601.84203092,0.00016496,2]
[394076059,1763244632307,-1439.815,0.00016496,2]
[394076060,1763244632316,-500.0,0.00016496,2]
[394076061,1763244632327,-500.0,0.00016496,2]
[394076062,1763244632336,-500.0,0.00016496,2]
[394076063,1763244632345,-250.0,0.00016496,2]
[394076064,1763244632354,-509.66911117,0.00016496,2]
[394076065,1763244632363,-421310.36084162,0.00016497,2]
[394076066,1763244632374,-37687.74318902,0.00016497,2]
[394076067,1763244632388,-1743.76049974,0.00016497,2]
[394076068,1763244632399,-938.58626969,0.00016497,2]
[394076069,1763244632410,-312.0,0.00016497,2]
[394076070,1763244632421,-32073.17458584,0.00016497,2]
[394076071,1763244632433,-885.27790424,0.00016497,2]
[394076072,1763244632470,-1420.2,0.00016497,2]
[394076076,1763244637499,-285.06134771,0.00016497,2]
[394076077,1763244637576,-1877.37012887,0.00016497,2]
[394076078,1763244637612,-2003.58187372,0.00016497,2]
[394076080,1763244637887,-3762.04915518,0.00016497,2]
[394076106,1763244639590,-303.93235507,0.00016497,2]
[394076109,1763244639602,-381.00229772,0.00016497,2]
[394076111,1763244639613,-477.13,0.00016497,2]
[394076113,1763244639627,-8784.602521,0.00016497,2]
[394076114,1763244639638,-8947.21879473,0.00016497,2]
[394076115,1763244639649,-8943.78386462,0.00016497,2]
[394076116,1763244639662,-9077.54866152,0.00016497,2]
[394076117,1763244639673,-8943.84023489,0.00016497,2]
[394076118,1763244639709,-209841.77547482,0.00016497,2]
[394076119,1763244639717,-658.51,0.00016575,2]
[394076120,1763244639727,-500.0,0.00016596,2]
[394076121,1763244639736,-500.0,0.00016596,2]
[394076122,1763244639745,-500.0,0.00016596,2]
[394076123,1763244639755,-500.0,0.00016596,2]
[394076124,1763244639764,-500.0,0.00016596,2]
[394076125,1763244639773,-500.0,0.00016596,2]
[394076126,1763244639783,-344.1218331,0.00016596,2]
[394076127,1763244639792,-500.0,0.00016596,2]
[394076128,1763244639801,-294.20147413,0.00016596,2]
[394076129,1763244639810,-275.21913048,0.00016596,2]
[394076130,1763244639819,-500.0,0.00016596,2]
[394076131,1763244639829,-500.0,0.00016596,2]
[394076132,1763244639839,-500.0,0.00016596,2]
[394076133,1763244639849,-500.0,0.00016596,2]
[394076134,1763244639858,-500.0,0.00016596,2]
[394076135,1763244639868,-1189.97,0.00016705,2]
[394076136,1763244639878,-435.43,0.00016761,2]
[394076137,1763244639888,-250.0,0.00017,2]
[394076138,1763244639897,-349.89127994,0.00017021,2]
[394076139,1763244639907,-456.49291772,0.00017021,2]
[394076140,1763244639917,-1000.0,0.00017021,2]
[394076141,1763244639927,-435.43,0.00017035,2]
[394076142,1763244639936,-658.51,0.00017166,2]
[394076143,1763244639946,-435.43,0.00017309,2]
[394076144,1763244639956,-935.0,0.00017511,2]
[394076146,1763244639966,-1325.91062983,0.00017568,2]
[394076147,1763244639975,-2500.0,0.00017581,2]
[394076148,1763244639986,-300.0,0.00017581,2]
[394076149,1763244639995,-357.36431197,0.00017581,2]
[394076150,1763244640005,-250.0,0.00017581,2]
[394076151,1763244640014,-195.0,0.00017581,2]
[394076152,1763244640024,-193.0,0.00017581,2]
[394076153,1763244640034,-195.0,0.00017581,2]
[394076154,1763244640043,-435.45804646,0.00017583,2]
[394076155,1763244640053,-658.51,0.00017758,2]
[394076156,1763244640063,-420.0,0.00017918,2]
[394076157,1763244640072,-1680.0,0.00018008,2]
[394076158,1763244640082,-658.51,0.0001835,2]
[394076159,1763244640091,-1589.0,0.00018708,2]
[394076160,1763244640101,-171.41450773,0.00018854,2]
[394076161,1763244640110,-219.02084019,0.00018942,2]
[394076162,1763244640120,-218.54750946,0.00018942,2]
[394076163,1763244640129,-658.51,0.00018942,2]
[394076164,1763244640138,-300.0,0.00019,2]
[394076165,1763244640148,-3576.39248094,0.00019238,2]
[394076166,1763244640157,-12852.43058998,0.00019238,2]
[394076167,1763244640166,-297.16919071,0.00019238,2]
[394076168,1763244640175,-658.51,0.00019534,2]
[394076169,1763244640185,-587.0,0.00019582,2]
[394076170,1763244640194,-218.54750946,0.00019775,2]
[394076171,1763244640204,-2351.0,0.00019779,2]
[394076172,1763244640213,-324.96,0.00019883,2]
[394076173,1763244640222,-678.0,0.0001997,2]
[394076174,1763244640231,-171.58592224,0.00020063,2]
[394076175,1763244640240,-658.51,0.00020126,2]
[394076176,1763244640250,-219.23986103,0.00020607,2]
[394076177,1763244640259,-218.76605697,0.00020607,2]
[394076178,1763244640268,-658.51,0.00020718,2]
[394076179,1763244640277,-1120.66378229,0.00020917,2]
[394076180,1763244640287,-300.0,0.00021222,2]
[394076181,1763244640296,-658.51,0.0002131,2]
[394076182,1763244640306,-823.0,0.00021402,2]
[394076183,1763244640315,-173.36130234,0.00021448,2]
[394076184,1763244640324,-600.0,0.00021553,2]
[394076185,1763244640334,-3292.0,0.00021724,2]
[394076186,1763244640343,-658.51,0.00021902,2]
[394076187,1763244640352,-5000.0,0.00021918,2]
[394076188,1763244640362,-3576.39248094,0.00022001,2]
[394076189,1763244640371,-12852.43058998,0.00022001,2]
[394076190,1763244640380,-297.16919071,0.00022001,2]
[394076191,1763244640390,-500.0,0.000221,2]
[394076192,1763244640399,-324.96,0.00022368,2]
[394076193,1763244640408,-658.51,0.00022494,2]
[394076194,1763244640417,-300.0,0.00022592,2]
[394076195,1763244640426,-1152.0,0.0002339,2]
[394076196,1763244640436,-4609.0,0.00023861,2]
[394076197,1763244640445,-339.97904075,0.00023959,2]
[394076198,1763244640454,-821.0,0.00024523,2]
[394076199,1763244640464,-1598.0,0.00024523,2]
[394076200,1763244640473,-1275.0,0.00024523,2]
[394076201,1763244640482,-793.0,0.00024523,2]
[394076202,1763244640491,-6487.0,0.00024523,2]
[394076203,1763244640501,-3170.0,0.00024523,2]
[394076204,1763244640510,-1603.0,0.00024523,2]
[394076205,1763244640519,-1567.61,0.00024658,30]
[394076206,1763244640528,-3576.39248094,0.00024763,2]
[394076207,1763244640538,-12852.43058998,0.00024763,2]
[394076208,1763244640547,-297.16919071,0.00024763,2]
[394076209,1763244640557,-150.0,0.00024782,2]
[394076210,1763244640566,-295.499,0.00024782,2]
[394076211,1763244640575,-209.0,0.00024782,2]
[394076212,1763244640584,-169.0,0.00024782,2]
[394076213,1763244640594,-288.139,0.00024782,2]
[394076214,1763244640603,-150.299,0.00024782,2]
[394076215,1763244640613,-150.0,0.00024782,2]
[394076216,1763244640622,-250.0,0.00024782,2]
[394076217,1763244640631,-150.0,0.00024782,2]
[394076218,1763244640640,-283.616,0.00024782,2]
[394076219,1763244640649,-150.696,0.00024782,2]
[394076220,1763244640662,-3430.0,0.00024782,2]
[394076221,1763244640671,-608.0,0.00024782,2]
[394076222,1763244640680,-1318.0,0.00024782,2]
[394076223,1763244640690,-169.51824299,0.0002479,2]
[394076224,1763244640700,-150.37,0.0002479,2]
[394076225,1763244640709,-150.37,0.0002479,2]
[394076226,1763244640719,-500.0,0.00024799,2]
[394076227,1763244640728,-500.0,0.00024799,2]
[394076228,1763244640740,-1502.14270288,0.000248,2]
[394076229,1763244640750,-327727.00404,0.000248,3]
[394076230,1763244640759,-150.37,0.0002488,2]
[394076231,1763244640768,-150.37,0.0002488,2]
[394076232,1763244640778,-131090.801616,0.0002489,3]
[394076233,1763244640788,-150.37,0.0002489,2]
[394076234,1763244640797,-150.37,0.0002489,2]
[394076235,1763244640806,-150.37,0.0002489,2]
[394076236,1763244640816,-150.37,0.0002489,2]
[394076237,1763244640825,-150.37,0.0002489,2]
[394076238,1763244640835,-3006.90779574,0.00024899,2]
[394076239,1763244640844,-311841.922287,0.000249,3]
[394076240,1763244640853,-150.37,0.0002496,2]
[394076241,1763244640862,-32772.700404,0.0002497,3]
[394076242,1763244640872,-10941.8218346,0.0002497,3]
[394076243,1763244640881,-150.37,0.0002497,2]
[394076244,1763244640891,-500.0,0.00024973,2]
[394076245,1763244640900,-500.0,0.00024973,2]
[394076246,1763244640910,-150.99,0.0002498,2]
[394076247,1763244640919,-9999.99,0.0002498,2]
[394076248,1763244640930,-1721.82,0.0002498,2]
[394076249,1763244640940,-299.99,0.0002498,7]
[394076250,1763244640949,-5875.42,0.0002498,2]
[394076251,1763244640959,-500.0,0.00025521,2]
[394076252,1763244640968,-1593.0,0.00025562,2]
[394076253,1763244640976,-5470.91091732,0.00026199,3]
[394076254,1763244640986,-6453.0,0.00026208,2]
[394076255,1763244640996,-173.36130234,0.00026421,2]
[394076256,1763244641005,-3645.67,0.00027123,2]
[394076257,1763244641015,-150.0,0.00027397,7]
[394076258,1763244641024,-300.0,0.00027397,7]
[394076259,1763244641033,-179.21101701,0.00027397,2]
[394076260,1763244641042,-300.0,0.00027397,2]
[394076261,1763244641052,-158.35583455,0.00027397,5]
[394076262,1763244641061,-222.68,0.000274,7]
[394076263,1763244641071,-10941.8218346,0.00027513,3]
[394076264,1763244641080,-5470.91091732,0.00027516,3]
[394076265,1763244641090,-150.37,0.00027516,2]
[394076266,1763244641100,-821.0,0.00027523,2]
[394076267,1763244641109,-1598.0,0.00027523,2]
[394076268,1763244641122,-1275.0,0.00027523,2]
[394076269,1763244641131,-793.0,0.00027523,2]
[394076270,1763244641141,-6487.0,0.00027523,2]
[394076271,1763244641150,-3170.0,0.00027523,2]
[394076272,1763244641159,-1603.0,0.00027523,2]
[394076273,1763244641169,-3576.39248094,0.00027526,2]
[394076274,1763244641179,-12852.43058998,0.00027526,2]
[394076275,1763244641188,-297.16919071,0.00027526,2]
[394076276,1763244641198,-1502.14270285,0.00027557,2]
[394076277,1763244641207,-32772.700404,0.00027762,3]
[394076278,1763244641217,-150.0,0.00027782,2]
[394076279,1763244641226,-150.0,0.00027782,2]
[394076280,1763244641236,-150.0,0.00027782,2]
[394076281,1763244641246,-150.0,0.00027782,2]
[394076282,1763244641260,-150.0,0.00027782,2]
[394076283,1763244641270,-150.0,0.00027782,2]
[394076284,1763244641279,-150.0,0.00027782,2]
[394076285,1763244641288,-150.0,0.00027782,2]
[394076286,1763244641298,-3430.0,0.00027782,2]
[394076287,1763244641307,-608.0,0.00027782,2]
[394076288,1763244641316,-1318.0,0.00027782,2]
[394076289,1763244641325,-9035.0,0.00028786,2]
[394076290,1763244641335,-228.93022402,0.00029049,30]
[394076291,1763244641344,-500.0,0.000293,5]
[394076292,1763244641353,-162.81933787,0.00029682,2]
[394076293,1763244641362,-1567.61,0.00029704,30]
[394076294,1763244641372,-504.0,0.00029781,2]
[394076295,1763244641381,-418.62282168,0.00029848,5]
[394076296,1763244641391,-500.0,0.00029895,2]
[394076297,1763244641400,-150.37,0.0003003,2]
[394076298,1763244641409,-150.0,0.0003004,7]
[394076299,1763244641418,-150.0,0.0003004,7]
[394076300,1763244641427,-150.0,0.0003004,7]
[394076301,1763244641436,-150.0,0.0003004,7]
[394076302,1763244641446,-150.0,0.0003004,7]
[394076303,1763244641455,-150.0,0.0003004,7]
[394076304,1763244641464,-150.0,0.0003004,7]
[394076305,1763244641473,-150.0,0.0003004,7]
[394076306,1763244641482,-150.0,0.0003004,7]
[394076307,1763244641491,-263.771,0.0003004,7]
[394076308,1763244641500,-320.56766369,0.00030189,2]